{"text_format":"3","workbook":"xlsx","n_sheets":3,"sheets":["Inizio","Budget mensile università","chart_calcs"],"not_rendered":{"charts":4,"defined_names":19},"read":"whole","date_system":"1900"}

{"sheet":"Inizio","index":0,"n_rows":7,"n_cols":2,"rows_kept":7}
[null,"INFORMAZIONI SU QUESTO MODELLO"]
[null,"Usare il foglio di lavoro budget mensile università per tenere traccia delle entrate, delle spese e del flusso di cassa."]
[null,"Immettere i ricavi mensili e le spese per calcolare l'importo totale e le spese."]
[null,"Il flusso di cassa viene automaticamente calcolato e il diagrammi del flusso di cassa viene aggiornato automaticamente."]
[null,"Selezionare il dispositivo di scorrimento per ottenere diagrammi di entrate, di spese e di flusso di cassa di mese e anno."]
[null,"Nota: "]
[null,"Nella colonna A di ciascun foglio di lavoro sono disponibili altre istruzioni. Questo testo è stato nascosto intenzionalmente. Per rimuovere il testo, selezionare la colonna A, quindi scegliere ELIMINA. Per visualizzare il testo, selezionare la colonna A, quindi modificare il colore del carattere."]

{"sheet":"Budget mensile università","index":1,"n_rows":72,"n_cols":16,"rows_kept":72,"merged":[[5,1,14,3],[5,4,14,11],[5,12,13,15],[15,1,19,15],[20,1,21,15]]}
["Creare un budget mensile università in questo foglio di lavoro. Il titolo di questo foglio di lavoro si trova nella cella a destra e nella cella B1. Istruzioni utili per l'uso di questo foglio di lavoro si trovano nelle celle di questa colonna. L'istruzione successiva si trova nella cella A4.","Budget mensile università"]
[]
[]
["L'etichetta Entrate si trova nella cella a destra, l'etichetta Uscite nella cella E4 e l’etichetta flusso di cassa nella cella M4.",{"$f":"chart_calcs!$D$6","v":"entrate anno:"},null,null,{"$f":"chart_calcs!$D$7","v":"spese anno:"},{"$nulls":7},{"$f":"chart_calcs!$D$8","v":"flusso di cassa anno:"}]
["Le entrate vengono automaticamente aggiornate nella cella a destra, le spese nella cella E5 e flusso di cassa nella cella M5.",{"$f":"\" \"&chart_calcs!$F$6","v":{"$error":"#VALUE!"}},null,null,{"$f":"\" \"&chart_calcs!$F$7","v":{"$error":"#VALUE!"}},{"$nulls":7},{"$f":"\" \"&chart_calcs!$F$8","v":" € 169"}]
["Grafico ad anello con riepilogo entrate nella cella a destra, riepilogo spese nella cella E6 e grafico a barre che mostra il flusso di cassa positivo e negativo nella cella M6 automaticamente aggiornati. L'istruzione successiva si trova nella cella A17.","Il grafico ad anello con riepilogo ricavi per un determinato mese o anno si trova in questa cella.",null,null,"Il grafico ad anello con riepilogo spese per un determinato mese o anno si trova in questa cella.",{"$nulls":7},"Il grafico a barre con flusso di cassa positivo e negativo per un determinato mese o anno si trova in questa cella."]
{"$rows_empty":9}
[null,"Il grafico a linee con riepilogo del flusso di cassa per un determinato mese o anno si trova in questa cella."]
["Il grafico a linee del flusso di cassa si trova nella cella a destra. L'istruzione successiva si trova nella cella A21."]
[]
[]
[]
["Selezionare il dispositivo di scorrimento a destra per ottenere dati e grafici di entrate, spese e flusso di cassa mensili o annuali. L'istruzione successiva si trova nella cella A25.","Questa cella contiene il dispositivo di scorrimento."]
[]
[]
[]
["Selezionare il mese nella cella a destra. Premere ALT+freccia GIÙ per visualizzare le opzioni e poi freccia GIÙ e INVIO per effettuare una selezione.","GEN"]
["Il periodo selezionato viene automaticamente aggiornato nella cella P26.",{"$nulls":14},{"$f":"SelectedPeriod","v":{"$error":"#VALUE!"}}]
["Le etichette sono in questa riga, l'disponibilità mensile dopo la nota spese nella cella a destra, i mesi nelle celle da C27 a N27, l’anno nella cella O27 e l’aumento percentuale nella cella P27.","Disponibilità mensile dopo la nota spese",{"$f":"PrimoMese","v":{"$error":"#VALUE!"}},{"$f":"NextMonth","v":{"$error":"#VALUE!"}},{"$error":"#VALUE!"},{"$error":"#VALUE!"},{"$error":"#VALUE!"},{"$error":"#VALUE!"},{"$error":"#VALUE!"},{"$error":"#VALUE!"},{"$error":"#VALUE!"},{"$error":"#VALUE!"},{"$error":"#VALUE!"},{"$error":"#VALUE!"},"ANNO  ","% INC "]
["L'etichetta flusso di cassa si trova nella cella a destra. Il flusso di cassa per ogni mese viene automaticamente calcolato nelle celle da C28 a N28, l’importo annuo nella cella O28 e la percentuale di aumento nella cella P28. Il grafico sparkline viene aggiornato automaticamente nella cella Q28.","Flusso di cassa",{"$f":"C37-C72","v":169},69,192,199,204,{"v":-771,"d":"-771 "},124,154,{"v":-721,"d":"-721 "},109,34,{"v":-61,"d":"-61 "},{"$f":"SUM(C28:N28)","v":{"v":-299,"d":"-299 "}},{"$f":"INDEX($C28:$O28,,SelectedPeriodColumn)/INDEX($C$37:$O$37,,SelectedPeriodColumn)","v":{"$error":"#VALUE!"}}]
["L'etichetta flusso di cassa cumulativo si trova nella cella a destra. Il flusso di cassa cumulativo per ogni mese viene automaticamente calcolato nelle celle da C29 a N29, l’importo annuo nella cella O29 e la percentuale di aumento nella cella P29. Il grafico sparkline viene aggiornato automaticamente nella cella Q29. L'istruzione successiva si trova nella cella A31.","Flusso di cassa cumulativo",{"$f":"SUM($C$28:C$28)","v":169},{"$f":"SUM($C$28:D$28)","v":238},{"$f":"SUM($C$28:E$28)","v":430},{"$f":"SUM($C$28:F$28)","v":629},{"$f":"SUM($C$28:G$28)","v":833},{"$f":"SUM($C$28:H$28)","v":62},{"$f":"SUM($C$28:I$28)","v":186},{"$f":"SUM($C$28:J$28)","v":340},{"$f":"SUM($C$28:K$28)","v":{"v":-381,"d":"-381 "}},{"$f":"SUM($C$28:L$28)","v":{"v":-272,"d":"-272 "}},{"$f":"SUM($C$28:M$28)","v":{"v":-238,"d":"-238 "}},{"$f":"SUM($C$28:N$28)","v":{"v":-299,"d":"-299 "}}]
[]
["L’etichetta entrate mensili si trova nella cella destra, i mesi nelle celle da C31 a N31, l’anno nella cella O31, e l’etichetta percentuale di aumento nella cella P31. Immettere gli elementi delle entrate mensili nelle celle da B32 a B36 e gli importi mensili nelle celle da C32 a N36. Le entrate annue vengono automaticamente calcolate nelle celle da O32 a O36 e la percentuale di aumento nelle celle da P32 a P36. L'istruzione successiva si trova nella cella A37.","ENTRATE MENSILI",{"$f":"PrimoMese","v":{"$error":"#VALUE!"}},{"$f":"NextMonth","v":{"$error":"#VALUE!"}},{"$error":"#VALUE!"},{"$error":"#VALUE!"},{"$error":"#VALUE!"},{"$error":"#VALUE!"},{"$error":"#VALUE!"},{"$error":"#VALUE!"},{"$error":"#VALUE!"},{"$error":"#VALUE!"},{"$error":"#VALUE!"},{"$error":"#VALUE!"},"ANNO  ","% INC "]
[null,"Sovvenzioni (borse di Studio, sovvenzioni, prestiti) per l'utente",0,0,750,750,750,750,750,750,750,750,750,750,{"$f":"SUM(C32:N32)","v":{"v":7500,"d":"7,500"}},{"$f":"INDEX($C32:$O32,,SelectedPeriodColumn)/INDEX($C$37:$O$37,,SelectedPeriodColumn)","v":{"$error":"#VALUE!"}}]
[null,"Retribuzioni da un lavoro al netto delle imposte",450,450,450,450,450,450,450,450,550,350,350,350,{"v":5200,"d":"5,200"},{"$f":"INDEX($C33:$O33,,SelectedPeriodColumn)/INDEX($C$37:$O$37,,SelectedPeriodColumn)","v":{"$error":"#VALUE!"}}]
[null,"Aiuti finanziari da parte della famiglia",200,200,{"v":1000,"d":"1,000"},350,350,350,350,350,350,350,350,350,{"v":4550,"d":"4,550"},{"$f":"INDEX($C34:$O34,,SelectedPeriodColumn)/INDEX($C$37:$O$37,,SelectedPeriodColumn)","v":{"$error":"#VALUE!"}}]
[null,"Prelievi da risparmi",500,350,150,0,0,0,0,0,0,0,0,0,{"v":1000,"d":"1,000"},{"$f":"INDEX($C35:$O35,,SelectedPeriodColumn)/INDEX($C$37:$O$37,,SelectedPeriodColumn)","v":{"$error":"#VALUE!"}}]
[null,"Altro (mantenimento figli, assistenza pubblica, regali, etc.)",75,75,75,75,75,75,75,75,75,75,75,75,900,{"$f":"INDEX($C36:$O36,,SelectedPeriodColumn)/INDEX($C$37:$O$37,,SelectedPeriodColumn)","v":{"$error":"#VALUE!"}}]
["L'etichetta Totale entrate si trova nella cella a destra. Le entrate totali per ogni mese vengono automaticamente calcolate nelle celle da C37 a N37, le entrate annue nella cella O37 e la percentuale di aumento nella cella P37. Il grafico sparkline viene aggiornato automaticamente nella cella Q37. L'istruzione successiva si trova nella cella A39.","TOTALE ENTRATE",{"$f":"SUM(C32:C36)","v":{"v":1225,"d":"1,225"}},{"v":1075,"d":"1,075"},{"v":2425,"d":"2,425"},{"v":1625,"d":"1,625"},{"v":1625,"d":"1,625"},{"v":1625,"d":"1,625"},{"v":1625,"d":"1,625"},{"v":1625,"d":"1,625"},{"v":1725,"d":"1,725"},{"v":1525,"d":"1,525"},{"v":1525,"d":"1,525"},{"v":1525,"d":"1,525"},{"v":19150,"d":"19,150"},{"$f":"INDEX($C37:$O37,,SelectedPeriodColumn)/INDEX($C$37:$O$37,,SelectedPeriodColumn)","v":{"$error":"#VALUE!"}}]
[]
["L’etichetta spese mensili si trova nella cella destra, i mesi nelle celle da C39 a N39, l’anno nella cella O39, e l’etichetta percentuale di aumento nella cella P39.","SPESE MENSILI",{"$f":"PrimoMese","v":{"$error":"#VALUE!"}},{"$f":"NextMonth","v":{"$error":"#VALUE!"}},{"$error":"#VALUE!"},{"$error":"#VALUE!"},{"$error":"#VALUE!"},{"$error":"#VALUE!"},{"$error":"#VALUE!"},{"$error":"#VALUE!"},{"$error":"#VALUE!"},{"$error":"#VALUE!"},{"$error":"#VALUE!"},{"$error":"#VALUE!"},"ANNO  ","% INC "]
["Immettere o modificare una voce della nota spese nella cella a destra e gli importi mensili nelle celle da C40 a N43. Le entrate annue vengono automaticamente calcolate nelle celle da O40 a O43 e la percentuale di aumento nelle celle da P40 a P43. Il grafico sparkline viene aggiornato automaticamente nella cella Q40. L’istruzione successiva si trova nella cella A45.","Vitto e alloggio",{"$f":"SUM(C41:C43)","v":565},565,565,565,565,565,565,565,565,565,565,565,{"$f":"SUM(C40:N40)","v":{"v":6780,"d":"6,780"}},{"$f":"INDEX($C40:$O40,,SelectedPeriodColumn)/INDEX($C$72:$O$72,,SelectedPeriodColumn)","v":{"$error":"#VALUE!"}}]
[null,null,315,315,315,315,315,315,315,315,315,315,315,315,{"$f":"SUM(C41:N41)","v":{"v":3780,"d":"3,780"}},{"$f":"INDEX($C41:$O41,,SelectedPeriodColumn)/INDEX($C$72:$O$72,,SelectedPeriodColumn)","v":{"$error":"#VALUE!"}}]
[null,null,200,200,200,200,200,200,200,200,200,200,200,200,{"$f":"SUM(C42:N42)","v":{"v":2400,"d":"2,400"}},{"$f":"INDEX($C42:$O42,,SelectedPeriodColumn)/INDEX($C$72:$O$72,,SelectedPeriodColumn)","v":{"$error":"#VALUE!"}}]
[null,null,50,50,50,50,50,50,50,50,50,50,50,50,{"$f":"SUM(C43:N43)","v":600},{"$f":"INDEX($C43:$O43,,SelectedPeriodColumn)/INDEX($C$72:$O$72,,SelectedPeriodColumn)","v":{"$error":"#VALUE!"}}]
[]
["Immettere o modificare una voce della nota spese nella cella a destra e gli importi mensili nelle celle da C45 a N47. Le entrate annue vengono automaticamente calcolate nelle celle da O45 a O47 e la percentuale di aumento nelle celle da P45 a P47. Il grafico sparkline viene aggiornato automaticamente nella cella Q45. L'istruzione successiva si trova nella cella A49.","Tasse scolastiche",{"$f":"SUM(C46:C47)","v":0},0,750,0,0,650,0,0,650,0,0,0,{"$f":"SUM(C45:N45)","v":{"v":2050,"d":"2,050"}},{"$f":"INDEX($C45:$O45,,SelectedPeriodColumn)/INDEX($C$72:$O$72,,SelectedPeriodColumn)","v":{"$error":"#VALUE!"}}]
[null,null,0,0,500,0,0,500,0,0,500,0,0,0,{"$f":"SUM(C46:N46)","v":{"v":1500,"d":"1,500"}},{"$f":"INDEX($C46:$O46,,SelectedPeriodColumn)/INDEX($C$72:$O$72,,SelectedPeriodColumn)","v":{"$error":"#VALUE!"}}]
[null,null,0,0,250,0,0,150,0,0,150,0,0,0,{"$f":"SUM(C47:N47)","v":550},{"$f":"INDEX($C47:$O47,,SelectedPeriodColumn)/INDEX($C$72:$O$72,,SelectedPeriodColumn)","v":{"$error":"#VALUE!"}}]
[]
["Immettere o modificare una voce della nota spese nella cella a destra e gli importi mensili nelle celle da C49 a N51. Le entrate annue vengono automaticamente calcolate nelle celle da O49 a O51 e la percentuale di aumento nelle celle da P49 a P51. Il grafico sparkline viene aggiornato automaticamente nella cella Q49. L'istruzione successiva si trova nella cella A53.","Libri e cancelleria",{"$f":"SUM(C50:C51)","v":0},0,325,20,20,325,10,10,400,15,15,15,{"$f":"SUM(C49:N49)","v":{"v":1155,"d":"1,155"}},{"$f":"INDEX($C49:$O49,,SelectedPeriodColumn)/INDEX($C$72:$O$72,,SelectedPeriodColumn)","v":{"$error":"#VALUE!"}}]
[null,null,0,0,225,0,0,275,0,0,325,0,0,0,{"$f":"SUM(C50:N50)","v":825},{"$f":"INDEX($C50:$O50,,SelectedPeriodColumn)/INDEX($C$72:$O$72,,SelectedPeriodColumn)","v":{"$error":"#VALUE!"}}]
[null,null,0,0,100,20,20,50,10,10,75,15,15,15,{"$f":"SUM(C51:N51)","v":330},{"$f":"INDEX($C51:$O51,,SelectedPeriodColumn)/INDEX($C$72:$O$72,,SelectedPeriodColumn)","v":{"$error":"#VALUE!"}}]
[]
["Immettere o modificare una voce della nota spese nella cella a destra e gli importi mensili nelle celle da C53 a N57. Le entrate annue vengono automaticamente calcolate nelle celle da O53 a O57 e la percentuale di aumento nelle celle da P53 a P57. Il grafico sparkline viene aggiornato automaticamente nella cella Q53. L'istruzione successiva si trova nella cella A59.","Trasporti",{"$f":"SUM(C54:C57)","v":224},174,174,219,174,174,274,219,174,174,224,269,{"$f":"SUM(C53:N53)","v":{"v":2473,"d":"2,473"}},{"$f":"INDEX($C53:$O53,,SelectedPeriodColumn)/INDEX($C$72:$O$72,,SelectedPeriodColumn)","v":{"$error":"#VALUE!"}}]
[null,null,30,30,30,75,30,30,30,75,30,30,30,75,{"$f":"SUM(C54:N54)","v":495},{"$f":"INDEX($C54:$O54,,SelectedPeriodColumn)/INDEX($C$72:$O$72,,SelectedPeriodColumn)","v":{"$error":"#VALUE!"}}]
[null,null,129,129,129,129,129,129,129,129,129,129,129,129,{"$f":"SUM(C55:N55)","v":{"v":1548,"d":"1,548"}},{"$f":"INDEX($C55:$O55,,SelectedPeriodColumn)/INDEX($C$72:$O$72,,SelectedPeriodColumn)","v":{"$error":"#VALUE!"}}]
[null,null,15,15,15,15,15,15,15,15,15,15,15,15,{"$f":"SUM(C56:N56)","v":180},{"$f":"INDEX($C56:$O56,,SelectedPeriodColumn)/INDEX($C$72:$O$72,,SelectedPeriodColumn)","v":{"$error":"#VALUE!"}}]
[null,null,50,0,0,0,0,0,100,0,0,0,50,50,{"$f":"SUM(C57:N57)","v":250},{"$f":"INDEX($C57:$O57,,SelectedPeriodColumn)/INDEX($C$72:$O$72,,SelectedPeriodColumn)","v":{"$error":"#VALUE!"}}]
[]
["Immettere o modificare una voce della nota spese nella cella a destra e gli importi mensili nelle celle da C59 a N65. Le entrate annue vengono automaticamente calcolate nelle celle da O59 a O65 e la percentuale di aumento nelle celle da P59 a P65. Il grafico sparkline viene aggiornato automaticamente nella cella Q59. L'istruzione successiva si trova nella cella A67.","Spese discrezionali",{"$f":"SUM(C60:C65)","v":69},69,169,369,419,444,419,419,394,394,419,469,{"$f":"SUM(C59:N59)","v":{"v":4053,"d":"4,053"}},{"$f":"INDEX($C59:$O59,,SelectedPeriodColumn)/INDEX($C$72:$O$72,,SelectedPeriodColumn)","v":{"$error":"#VALUE!"}}]
[null,null,0,0,0,50,100,100,100,100,75,75,100,100,800,{"$f":"INDEX($C60:$O60,,SelectedPeriodColumn)/INDEX($C$72:$O$72,,SelectedPeriodColumn)","v":{"$error":"#VALUE!"}}]
[null,null,69,69,69,69,69,69,69,69,69,69,69,69,828,{"$f":"INDEX($C61:$O61,,SelectedPeriodColumn)/INDEX($C$72:$O$72,,SelectedPeriodColumn)","v":{"$error":"#VALUE!"}}]
[null,null,0,0,0,0,0,25,0,0,0,0,0,50,75,{"$f":"INDEX($C62:$O62,,SelectedPeriodColumn)/INDEX($C$72:$O$72,,SelectedPeriodColumn)","v":{"$error":"#VALUE!"}}]
[null,null,0,0,100,100,100,100,100,100,100,100,100,100,{"v":1000,"d":"1,000"},{"$f":"INDEX($C63:$O63,,SelectedPeriodColumn)/INDEX($C$72:$O$72,,SelectedPeriodColumn)","v":{"$error":"#VALUE!"}}]
[null,null,0,0,0,50,50,50,50,50,50,50,50,50,450,{"$f":"INDEX($C64:$O64,,SelectedPeriodColumn)/INDEX($C$72:$O$72,,SelectedPeriodColumn)","v":{"$error":"#VALUE!"}}]
[null,null,0,0,0,100,100,100,100,100,100,100,100,100,900,{"$f":"INDEX($C65:$O65,,SelectedPeriodColumn)/INDEX($C$72:$O$72,,SelectedPeriodColumn)","v":{"$error":"#VALUE!"}}]
[]
["Immettere o modificare una voce della nota spese nella cella a destra e gli importi mensili nelle celle da C67 a N70. Le entrate annue vengono automaticamente calcolate nelle celle da O67 a O70 e la percentuale di aumento nelle celle da P67 a P70. Il grafico sparkline viene aggiornato automaticamente nella cella Q67. L'istruzione successiva si trova nella cella A72.","Altre spese",{"$f":"SUM(C68:C70)","v":198},{"$f":"SUM(D68:D70)","v":198},250,253,243,238,233,258,263,268,268,268,{"$f":"SUM(C67:N67)","v":{"v":2938,"d":"2,938"}},{"$f":"INDEX($C67:$O67,,SelectedPeriodColumn)/INDEX($C$72:$O$72,,SelectedPeriodColumn)","v":{"$error":"#VALUE!"}}]
[null,null,123,123,123,123,123,123,123,123,123,123,123,123,{"$f":"SUM(C68:N68)","v":{"v":1476,"d":"1,476"}},{"$f":"INDEX($C68:$O68,,SelectedPeriodColumn)/INDEX($C$72:$O$72,,SelectedPeriodColumn)","v":{"$error":"#VALUE!"}}]
[null,null,0,0,52,55,45,40,35,60,65,70,70,70,{"$f":"SUM(C69:N69)","v":562},{"$f":"INDEX($C69:$O69,,SelectedPeriodColumn)/INDEX($C$72:$O$72,,SelectedPeriodColumn)","v":{"$error":"#VALUE!"}}]
[null,null,75,75,75,75,75,75,75,75,75,75,75,75,{"$f":"SUM(C70:N70)","v":900},{"$f":"INDEX($C70:$O70,,SelectedPeriodColumn)/INDEX($C$72:$O$72,,SelectedPeriodColumn)","v":{"$error":"#VALUE!"}}]
[]
["L'etichetta Totale spese si trova nella cella a destra. Le spese totali per ogni mese vengono automaticamente calcolati nelle celle da C72 a N72, le spese annue nella cella O72 e la percentuale di aumento nella cella P72. Il grafico sparkline viene aggiornato automaticamente nella cella Q72.","TOTALE SPESE",{"$f":"SUM(C40,C45,C49,C53,C59,C67)","v":{"v":1056,"d":"1,056"}},{"v":1006,"d":"1,006"},{"v":2233,"d":"2,233"},{"v":1426,"d":"1,426"},{"v":1421,"d":"1,421"},{"v":2396,"d":"2,396"},{"v":1501,"d":"1,501"},{"v":1471,"d":"1,471"},{"v":2446,"d":"2,446"},{"v":1416,"d":"1,416"},{"v":1491,"d":"1,491"},{"v":1586,"d":"1,586"},{"$f":"SUM(C72:N72)","v":{"v":19449,"d":"19,449"}},{"$f":"INDEX($C72:$O72,,SelectedPeriodColumn)/INDEX($C$72:$O$72,,SelectedPeriodColumn)","v":{"$error":"#VALUE!"}}]

{"sheet":"chart_calcs","index":2,"n_rows":23,"n_cols":16,"rows_kept":23,"hidden":true}
["***Questo foglio deve rimanere nascosto***"]
[]
[{"$nulls":3},{"$f":"IFERROR(LOWER(TEXT(VALUE(SelectedPeriod&\" 1\"),\"mmmm\")),\"anno\")","v":"anno"}]
[]
[{"$nulls":3},"Titoli grafico dinamico"]
[{"$nulls":3},{"$f":"\"entrate \"&D3&\":\"","v":"entrate anno:"},null,{"$f":"TEXT(INDEX('Budget mensile università'!$C$37:$O$37,,SelectedPeriodColumn),\"€ #.###\")","v":{"$error":"#VALUE!"}}]
[{"$nulls":3},{"$f":"\"spese \"&D3&\":\"","v":"spese anno:"},null,{"$f":"TEXT(INDEX('Budget mensile università'!$C$72:$O$72,,SelectedPeriodColumn),\"€ #.###\")","v":{"$error":"#VALUE!"}}]
[{"$nulls":3},{"$f":"\"flusso di cassa \"&D3&\":\"","v":"flusso di cassa anno:"},{"$f":"INDEX('Budget mensile università'!C28:O28,ScrollBarValue)","v":169},{"$f":"TEXT(E8,\"€ #.###\")","v":"€ 169"}]
[]
[]
[]
[{"$nulls":3},{"$f":"LOWER('Budget mensile università'!C27)","v":{"$error":"#VALUE!"}},{"$f":"LOWER('Budget mensile università'!D27)","v":{"$error":"#VALUE!"}},{"$f":"LOWER('Budget mensile università'!E27)","v":{"$error":"#VALUE!"}},{"$f":"LOWER('Budget mensile università'!F27)","v":{"$error":"#VALUE!"}},{"$f":"LOWER('Budget mensile università'!G27)","v":{"$error":"#VALUE!"}},{"$f":"LOWER('Budget mensile università'!H27)","v":{"$error":"#VALUE!"}},{"$f":"LOWER('Budget mensile università'!I27)","v":{"$error":"#VALUE!"}},{"$f":"LOWER('Budget mensile università'!J27)","v":{"$error":"#VALUE!"}},{"$f":"LOWER('Budget mensile università'!K27)","v":{"$error":"#VALUE!"}},{"$f":"LOWER('Budget mensile università'!L27)","v":{"$error":"#VALUE!"}},{"$f":"LOWER('Budget mensile università'!M27)","v":{"$error":"#VALUE!"}},{"$f":"LOWER('Budget mensile università'!N27)","v":{"$error":"#VALUE!"}},{"$f":"LOWER('Budget mensile università'!O27)","v":"anno  "}]
[null,null,"Valore barra di scorrimento: ",1]
[null,null,"Grafico Flusso di cassa: ",{"$f":"IF(SelectedPeriod='Budget mensile università'!C$31,IF('Budget mensile università'!$C$28:$O$28>=0,'Budget mensile università'!$C$28:$O$28,NA()),NA())","v":{"$error":"#VALUE!"}},{"$f":"IF(SelectedPeriod='Budget mensile università'!D$31,IF('Budget mensile università'!$C$28:$O$28>=0,'Budget mensile università'!$C$28:$O$28,NA()),NA())","v":{"$error":"#VALUE!"}},{"$f":"IF(SelectedPeriod='Budget mensile università'!E$31,IF('Budget mensile università'!$C$28:$O$28>=0,'Budget mensile università'!$C$28:$O$28,NA()),NA())","v":{"$error":"#VALUE!"}},{"$f":"IF(SelectedPeriod='Budget mensile università'!F$31,IF('Budget mensile università'!$C$28:$O$28>=0,'Budget mensile università'!$C$28:$O$28,NA()),NA())","v":{"$error":"#VALUE!"}},{"$f":"IF(SelectedPeriod='Budget mensile università'!G$31,IF('Budget mensile università'!$C$28:$O$28>=0,'Budget mensile università'!$C$28:$O$28,NA()),NA())","v":{"$error":"#VALUE!"}},{"$f":"IF(SelectedPeriod='Budget mensile università'!H$31,IF('Budget mensile università'!$C$28:$O$28>=0,'Budget mensile università'!$C$28:$O$28,NA()),NA())","v":{"$error":"#VALUE!"}},{"$f":"IF(SelectedPeriod='Budget mensile università'!I$31,IF('Budget mensile università'!$C$28:$O$28>=0,'Budget mensile università'!$C$28:$O$28,NA()),NA())","v":{"$error":"#VALUE!"}},{"$f":"IF(SelectedPeriod='Budget mensile università'!J$31,IF('Budget mensile università'!$C$28:$O$28>=0,'Budget mensile università'!$C$28:$O$28,NA()),NA())","v":{"$error":"#VALUE!"}},{"$f":"IF(SelectedPeriod='Budget mensile università'!K$31,IF('Budget mensile università'!$C$28:$O$28>=0,'Budget mensile università'!$C$28:$O$28,NA()),NA())","v":{"$error":"#VALUE!"}},{"$f":"IF(SelectedPeriod='Budget mensile università'!L$31,IF('Budget mensile università'!$C$28:$O$28>=0,'Budget mensile università'!$C$28:$O$28,NA()),NA())","v":{"$error":"#VALUE!"}},{"$f":"IF(SelectedPeriod='Budget mensile università'!M$31,IF('Budget mensile università'!$C$28:$O$28>=0,'Budget mensile università'!$C$28:$O$28,NA()),NA())","v":{"$error":"#VALUE!"}},{"$f":"IF(SelectedPeriod='Budget mensile università'!N$31,IF('Budget mensile università'!$C$28:$O$28>=0,'Budget mensile università'!$C$28:$O$28,NA()),NA())","v":{"$error":"#VALUE!"}},{"$f":"IF(SelectedPeriod='Budget mensile università'!O$31,IF('Budget mensile università'!$C$28:$O$28>=0,'Budget mensile università'!$C$28:$O$28,NA()),NA())","v":{"$error":"#VALUE!"}}]
[null,null,"Cumulativo: ",{"$f":"IF(SelectedPeriod='Budget mensile università'!C$31,IF('Budget mensile università'!$C$28:$O$28<0,'Budget mensile università'!$C$28:$O$28,NA()),NA())","v":{"$error":"#VALUE!"}},{"$f":"IF(SelectedPeriod='Budget mensile università'!D$31,IF('Budget mensile università'!$C$28:$O$28<0,'Budget mensile università'!$C$28:$O$28,NA()),NA())","v":{"$error":"#VALUE!"}},{"$f":"IF(SelectedPeriod='Budget mensile università'!E$31,IF('Budget mensile università'!$C$28:$O$28<0,'Budget mensile università'!$C$28:$O$28,NA()),NA())","v":{"$error":"#VALUE!"}},{"$f":"IF(SelectedPeriod='Budget mensile università'!F$31,IF('Budget mensile università'!$C$28:$O$28<0,'Budget mensile università'!$C$28:$O$28,NA()),NA())","v":{"$error":"#VALUE!"}},{"$f":"IF(SelectedPeriod='Budget mensile università'!G$31,IF('Budget mensile università'!$C$28:$O$28<0,'Budget mensile università'!$C$28:$O$28,NA()),NA())","v":{"$error":"#VALUE!"}},{"$f":"IF(SelectedPeriod='Budget mensile università'!H$31,IF('Budget mensile università'!$C$28:$O$28<0,'Budget mensile università'!$C$28:$O$28,NA()),NA())","v":{"$error":"#VALUE!"}},{"$f":"IF(SelectedPeriod='Budget mensile università'!I$31,IF('Budget mensile università'!$C$28:$O$28<0,'Budget mensile università'!$C$28:$O$28,NA()),NA())","v":{"$error":"#VALUE!"}},{"$f":"IF(SelectedPeriod='Budget mensile università'!J$31,IF('Budget mensile università'!$C$28:$O$28<0,'Budget mensile università'!$C$28:$O$28,NA()),NA())","v":{"$error":"#VALUE!"}},{"$f":"IF(SelectedPeriod='Budget mensile università'!K$31,IF('Budget mensile università'!$C$28:$O$28<0,'Budget mensile università'!$C$28:$O$28,NA()),NA())","v":{"$error":"#VALUE!"}},{"$f":"IF(SelectedPeriod='Budget mensile università'!L$31,IF('Budget mensile università'!$C$28:$O$28<0,'Budget mensile università'!$C$28:$O$28,NA()),NA())","v":{"$error":"#VALUE!"}},{"$f":"IF(SelectedPeriod='Budget mensile università'!M$31,IF('Budget mensile università'!$C$28:$O$28<0,'Budget mensile università'!$C$28:$O$28,NA()),NA())","v":{"$error":"#VALUE!"}},{"$f":"IF(SelectedPeriod='Budget mensile università'!N$31,IF('Budget mensile università'!$C$28:$O$28<0,'Budget mensile università'!$C$28:$O$28,NA()),NA())","v":{"$error":"#VALUE!"}},{"$f":"IF(SelectedPeriod='Budget mensile università'!O$31,IF('Budget mensile università'!$C$28:$O$28<0,'Budget mensile università'!$C$28:$O$28,NA()),NA())","v":{"$error":"#VALUE!"}}]
[]
[]
[null,null,"DATI DEL GRAFICO ENTRATE"]
[null,null,"Sovvenzioni (borse di Studio, sovvenzioni, prestiti) per l'utente",{"$f":"'Budget mensile università'!P32","v":{"$error":"#VALUE!"}}]
[null,null,"Retribuzioni da un lavoro al netto delle imposte",{"$f":"'Budget mensile università'!P33","v":{"$error":"#VALUE!"}}]
[null,null,"Aiuti finanziari da parte della famiglia",{"$f":"'Budget mensile università'!P34","v":{"$error":"#VALUE!"}}]
[null,null,"Prelievi da risparmi",{"$f":"'Budget mensile università'!P35","v":{"$error":"#VALUE!"}}]
[null,null,"Altro (mantenimento figli, assistenza pubblica, regali, etc.)",{"$f":"'Budget mensile università'!P36","v":{"$error":"#VALUE!"}}]